{"text_format":"1","workbook":"xlsx","n_sheets":6,"sheets":["集計","１．コレウス・フォルスコリー","２．ドオウレン","３．プエラリア・ミリフィカ","４．ブラックコホシュ","５．プエラリア・ミリフィカ+ブラックコホシュ"],"not_rendered":{"charts":0,"images":0,"macros":1,"external_links":2,"defined_names":13,"comments":0,"pivot_tables":0},"unopened":[],"bounds":{"document_bytes":16777216,"sheet_cells":100000,"rows_first":2000,"rows_last":500,"rows_between":2000,"halvings":0,"cell_chars":16384,"cell_head_chars":4096},"cells_cut":0,"cells_raw":0,"read":"whole","date_system":"1900"}

{"sheet":"集計","index":0,"n_rows":63,"n_cols":14,"rows_kept":63,"cut":false,"hidden":false,"merged":[[1,0,1,13],[9,0,10,0],[19,1,19,2],[19,3,19,4],[19,5,19,6],[19,7,19,8],[9,1,9,13],[6,0,6,13],[25,1,25,2],[25,3,25,4],[25,5,25,6],[25,7,25,8],[22,1,22,2],[22,3,22,4],[22,5,22,6],[22,7,22,8],[23,1,23,2],[23,3,23,4],[23,5,23,6],[23,7,23,8],[24,1,24,2],[24,3,24,4],[24,5,24,6],[24,7,24,8],[20,1,20,2],[20,3,20,4],[20,5,20,6],[20,7,20,8],[21,1,21,2],[21,3,21,4],[21,5,21,6],[21,7,21,8],[37,1,37,13],[38,1,38,13],[39,1,39,13],[40,1,40,13],[41,1,41,13],[42,1,42,13],[47,1,47,2],[47,3,47,4],[47,5,47,6],[47,7,47,8],[48,1,48,2],[48,3,48,4],[48,5,48,6],[48,7,48,8],[49,1,49,2],[49,3,49,4],[49,5,49,6],[49,7,49,8],[50,1,50,2],[50,3,50,4],[50,5,50,6],[50,7,50,8],[51,1,51,2],[51,3,51,4],[51,5,51,6],[51,7,51,8],[52,1,52,2],[52,3,52,4],[52,5,52,6],[52,7,52,8],[53,1,53,2],[53,3,53,4],[53,5,53,6],[53,7,53,8],[56,1,56,2],[56,3,56,4],[56,5,56,6],[56,7,56,8],[57,1,57,2],[57,3,57,4],[57,5,57,6],[57,7,57,8],[58,1,58,2],[58,3,58,4],[58,5,58,6],[58,7,58,8],[59,1,59,2],[59,3,59,4],[59,5,59,6],[59,7,59,8],[62,1,62,2],[62,3,62,4],[62,5,62,6],[62,7,62,8],[60,1,60,2],[60,3,60,4],[60,5,60,6],[60,7,60,8],[61,1,61,2],[61,3,61,4],[61,5,61,6],[61,7,61,8]]}
[]
["指定成分等含有食品との関連が疑われる健康被害情報について（令和４年）"]
[]
[null,null,null,null,null,null,null,null,null,null,null,null,null,"医薬・生活衛生局食品基準審査課"]
[null,null,null,null,null,null,null,null,null,null,null,null,null,"令和5年7月10日時点"]
[]
["健康被害情報の内容の追加及び変更（届出対象でないと判明した場合を含む。）の報告により、随時更新しています。"]
[]
["１．指定成分等含有食品による健康被害報告件数"]
["含有する指定成分等","報告件数（件）"]
[null,"1月","2月","3月","4月","5月","6月","7月","８月","９月","10月","11月","12月","累計"]
["コレウス・フォルスコリー",9,4,9,11,7,5,8,9,6,9,9,1,87]
["ドオウレン",0,0,0,0,0,0,0,0,0,0,0,0,0]
["プエラリア・ミリフィカ",1,1,3,0,8,0,2,0,2,0,2,0,19]
["ブラックコホシュ",1,1,2,1,3,2,0,0,0,0,0,0,10]
["プエラリア・ミリフィカ+ブラックコホシュ",2,0,3,2,1,1,1,2,0,1,3,1,17]
["合計",{"$f":"SUM(B12:B16)","v":13},{"$f":"SUM(C12:C16)","v":6},17,14,19,8,11,11,{"$f":"SUM(J12:J16)","v":8},{"$f":"SUM(K12:K16)","v":10},{"$f":"SUM(L12:L16)","v":14},{"$f":"SUM(M12:M16)","v":2},{"$f":"SUM(N12:N16)","v":133}]
[]
["２．性別（単位：人）"]
["含有する指定成分等","男性",null,"女性",null,"不明",null,"累計"]
["コレウス・フォルスコリー",{"$f":"COUNTIF('１．コレウス・フォルスコリー'!$C$11:$C$517,B20)","v":11},null,{"$f":"COUNTIF('１．コレウス・フォルスコリー'!$C$11:$C$517,D20)","v":75},null,{"$f":"COUNTIF('１．コレウス・フォルスコリー'!$C$11:$C$517,F20)","v":1},null,{"$f":"SUM(B21:G21)","v":87}]
["ドオウレン",{"$f":"COUNTIF('２．ドオウレン'!$C$11:$C$102,B20)","v":0},null,{"$f":"COUNTIF('２．ドオウレン'!$C$11:$C$102,D20)","v":0},null,{"$f":"COUNTIF('２．ドオウレン'!$C$11:$C$102,F20)","v":0},null,{"$f":"SUM(B22:G22)","v":0}]
["プエラリア・ミリフィカ",{"$f":"COUNTIF('３．プエラリア・ミリフィカ'!$C$11:$C$144,B20)","v":2},null,{"$f":"COUNTIF('３．プエラリア・ミリフィカ'!$C$11:$C$144,D20)","v":16},null,{"$f":"COUNTIF('３．プエラリア・ミリフィカ'!$C$11:$C$144,F20)","v":1},null,19]
["ブラックコホシュ",{"$f":"COUNTIF('４．ブラックコホシュ'!$C$11:$C$252,B20)","v":0},null,{"$f":"COUNTIF('４．ブラックコホシュ'!$C$11:$C$252,D20)","v":10},null,{"$f":"COUNTIF('４．ブラックコホシュ'!$C$11:$C$252,F20)","v":0},null,10]
["プエラリア・ミリフィカ+ブラックコホシュ",{"$f":"COUNTIF('５．プエラリア・ミリフィカ+ブラックコホシュ'!$C$11:$C$126,B20)","v":1},null,{"$f":"COUNTIF('５．プエラリア・ミリフィカ+ブラックコホシュ'!$C$11:$C$126,D20)","v":16},null,{"$f":"COUNTIF('５．プエラリア・ミリフィカ+ブラックコホシュ'!$C$11:$C$126,F20)","v":0},null,17]
["合計",{"$f":"SUM(B21:C25)","v":14},null,{"$f":"SUM(D21:E25)","v":117},null,{"$f":"SUM(F21:G25)","v":2},null,{"$f":"SUM(H21:I25)","v":133}]
[]
["３．年齢（単位：人）"]
["含有する指定成分等","10代\n未満","10代","20代","30代","40代","50代","60代","70代","80代","90代","100歳以上","不明","累計"]
["コレウス・フォルスコリー",0,0,2,4,22,19,23,10,0,0,0,7,87]
["ドオウレン",0,0,0,0,0,0,0,0,0,0,0,0,0]
["プエラリア・ミリフィカ",0,0,2,4,4,2,1,0,0,0,0,6,19]
["ブラックコホシュ",0,0,0,0,1,4,0,0,1,0,0,4,10]
["プエラリア・ミリフィカ+ブラックコホシュ",0,0,1,2,5,6,0,1,0,0,0,2,17]
["合計",{"$f":"SUM(B30:B34)","v":0},0,5,10,32,{"$f":"SUM(G30:G34)","v":31},{"$f":"SUM(H30:H34)","v":24},{"$f":"SUM(I30:I34)","v":11},{"$f":"SUM(J30:J34)","v":1},{"$f":"SUM(K30:K34)","v":0},{"$f":"SUM(L30:L34)","v":0},{"$f":"SUM(M30:M34)","v":19},{"$f":"SUM(N30:N34)","v":133}]
[]
["４．報告のある主な症状（令和２年からの報告を含む）"]
["含有する指定成分等","症状"]
["コレウス・フォルスコリー","下痢（軟便を含む）、かゆみ・発疹、胃痛（胃の不快感含む）腹痛、\n検査値の異常（肝機能）、便秘、頭痛、　等"]
["ドオウレン","健康被害報告なし"]
["プエラリア・ミリフィカ","不正性器出血、月経不順、かゆみ・発疹、胸の張り、腹痛、倦怠感　等"]
["ブラックコホシュ","胃痛（胃の不快感を含む）、かゆみ・発疹、月経不順、下痢、検査値の異常（肝機能）、\nふらつき、吐気・嘔吐、ほてり、頭痛　等"]
["プエラリア・ミリフィカ+ブラックコホシュ","不正性器出血、月経不順、蕁麻疹、腹痛　等"]
[]
[]
[]
["５．他のいわゆる「健康食品」の摂取状況（単位：人）"]
["含有する指定成分等","あり",null,"なし",null,"不明",null,"累計"]
["コレウス・フォルスコリー",{"$f":"COUNTIF('１．コレウス・フォルスコリー'!$I$11:$I$502,集計!$B$48)","v":32},null,{"$f":"COUNTIF('１．コレウス・フォルスコリー'!$I$11:$I$502,集計!D48)","v":30},null,{"$f":"COUNTIF('１．コレウス・フォルスコリー'!$I$11:$I$502,集計!F48)","v":25},null,{"$f":"SUM(B49:G49)","v":87}]
["ドオウレン",{"$f":"COUNTIF('２．ドオウレン'!$I$11:$I$502,集計!B48)","v":0},null,{"$f":"COUNTIF('２．ドオウレン'!$I$11:$I$502,集計!D48)","v":0},null,{"$f":"COUNTIF('２．ドオウレン'!$I$11:$I$502,集計!F48)","v":0},null,{"$f":"SUM(B50:G50)","v":0}]
["プエラリア・ミリフィカ",{"$f":"COUNTIF('３．プエラリア・ミリフィカ'!$I$11:$I$502,集計!B48)","v":3},null,{"$f":"COUNTIF('３．プエラリア・ミリフィカ'!$I$11:$I$502,集計!D48)","v":3},null,{"$f":"COUNTIF('３．プエラリア・ミリフィカ'!$I$11:$I$502,集計!F48)","v":13},null,19]
["ブラックコホシュ",{"$f":"COUNTIF('４．ブラックコホシュ'!$I$11:$I$502,集計!B48)","v":0},null,{"$f":"COUNTIF('４．ブラックコホシュ'!$I$11:$I$502,集計!D48)","v":1},null,{"$f":"COUNTIF('４．ブラックコホシュ'!$I$11:$I$502,集計!F48)","v":9},null,10]
["プエラリア・ミリフィカ+ブラックコホシュ",{"$f":"COUNTIF('５．プエラリア・ミリフィカ+ブラックコホシュ'!$I$11:$I$502,集計!B48)","v":10},null,{"$f":"COUNTIF('５．プエラリア・ミリフィカ+ブラックコホシュ'!$I$11:$I$502,集計!D48)","v":3},null,{"$f":"COUNTIF('５．プエラリア・ミリフィカ+ブラックコホシュ'!$I$11:$I$502,集計!F48)","v":4},null,17]
["合計",{"$f":"SUM(B49:C53)","v":45},null,{"$f":"SUM(D49:E53)","v":37},null,{"$f":"SUM(F49:G53)","v":51},null,{"$f":"SUM(H49:I53)","v":133}]
[]
["６．医薬品の摂取状況（単位：人）"]
["含有する指定成分等","あり",null,"なし",null,"不明",null,"累計"]
["コレウス・フォルスコリー",{"$f":"COUNTIF('１．コレウス・フォルスコリー'!$J$11:$J$502,集計!$B$57)","v":30},null,{"$f":"COUNTIF('１．コレウス・フォルスコリー'!$J$11:$J$502,集計!D57)","v":37},null,{"$f":"COUNTIF('１．コレウス・フォルスコリー'!$J$11:$J$502,集計!F57)","v":20},null,{"$f":"SUM(B58:G58)","v":87}]
["ドオウレン",{"$f":"COUNTIF('２．ドオウレン'!$J$11:$J$502,集計!B57)","v":0},null,{"$f":"COUNTIF('２．ドオウレン'!$J$11:$J$502,集計!D57)","v":0},null,{"$f":"COUNTIF('２．ドオウレン'!$J$11:$J$502,集計!F57)","v":0},null,{"$f":"SUM(B59:G59)","v":0}]
["プエラリア・ミリフィカ",{"$f":"COUNTIF('３．プエラリア・ミリフィカ'!$J$11:$J$502,集計!B57)","v":2},null,{"$f":"COUNTIF('３．プエラリア・ミリフィカ'!$J$11:$J$502,集計!D57)","v":6},null,{"$f":"COUNTIF('３．プエラリア・ミリフィカ'!$J$11:$J$502,集計!F57)","v":11},null,19]
["ブラックコホシュ",{"$f":"COUNTIF('４．ブラックコホシュ'!$J$11:$J$502,集計!B57)","v":4},null,{"$f":"COUNTIF('４．ブラックコホシュ'!$J$11:$J$502,集計!D57)","v":0},null,{"$f":"COUNTIF('４．ブラックコホシュ'!$J$11:$J$502,集計!F57)","v":6},null,10]
["プエラリア・ミリフィカ+ブラックコホシュ",{"$f":"COUNTIF('５．プエラリア・ミリフィカ+ブラックコホシュ'!$J$11:$J$502,集計!B57)","v":4},null,{"$f":"COUNTIF('５．プエラリア・ミリフィカ+ブラックコホシュ'!$J$11:$J$502,集計!D57)","v":8},null,{"$f":"COUNTIF('５．プエラリア・ミリフィカ+ブラックコホシュ'!$J$11:$J$502,集計!F57)","v":5},null,17]
["合計",{"$f":"SUM(B58:C62)","v":40},null,{"$f":"SUM(D58:E62)","v":51},null,{"$f":"SUM(F58:G62)","v":42},null,{"$f":"SUM(H58:I62)","v":133}]

{"sheet":"１．コレウス・フォルスコリー","index":1,"n_rows":516,"n_cols":12,"rows_kept":516,"cut":false,"hidden":false,"merged":[[1,1,1,11],[6,0,6,11]]}
[]
[null,"指定成分等含有食品との関連が疑われる健康被害情報一覧"]
[]
[null,null,null,null,null,null,null,null,null,null,null,"医薬・生活衛生局食品基準審査課"]
[null,null,null,null,null,null,null,null,null,null,null,"令和5年7月10日時点"]
[]
["健康被害情報の内容の追加及び変更（届出対象でないと判明した場合を含む。）の報告により、随時更新しています。"]
[]
["１．コレウス・フォルスコリーを含む食品（87件）"]
["No.","健康被害情報受理日","性別","年齢","主な症状\n（自己申告を含む）","摂取開始日・期間","症状発現日","症状発現後の使用状況・\n症状","他のいわゆる健康食品の摂取状況","医薬品の\n摂取状況","重篤度\n（保健所使用欄）","備考"]
[1,"2022-01-05","男性","60代","軟便","不明","摂取開始２－３日後","継続摂取","不明","不明","軽微"]
[2,"2022-01-05","男性","40代","下痢","令和3年12月8日のみ","摂取後直ぐ","中止後症状改善あり","なし","なし","軽微","摂取状況の少量：1粒"]
[3,"2022-01-05","女性","40代","下痢","不明","不明","継続摂取","あり","なし","軽微"]
[4,"2022-01-25","女性","不明（80歳以上）","下痢","不明（摂取期間は2ヶ月間）","不明","中止後症状改善あり","あり","あり","軽微","当該製品以外のいわゆる「健康食品」を摂取しており、便の調子が良くなっていた状況に、追加で本品を摂取した処、最初は問題なかったが、腹痛はないが下痢気味、ガスが溜まる等が生じ、便器に便がついたりしたとのこと。（報告書に記載あり）"]
[5,"2022-01-25","女性","60代","脇汗をかくような時期ではなかったが、脇汗をかいてそれが臭く、べたべたするような感じ","不明（摂取期間は1ヶ月間）","不明","中止後症状改善あり","不明","不明","軽微"]
[6,"2022-01-25","女性","50代","11月に受診した健康診断で、AST216、ALT359で再検査","不明（摂取期間は3～4ヶ月間）","11月の健康診断","中止後症状改善なし","あり","あり","軽度","7月から本品を3～4ヶ月間摂取した処、11月に受けた健康診断で、AST216、ALT359で再検査になった。8月より整形外科でロルノキシカム、レバミピドを服用している事を申告したが、本品の摂取については申告していない。（報告書に記載あり）"]
[7,"2022-01-25","女性","40代","下痢","不明（摂取期間は2日間）","本品摂取２～3時間後","中止後症状改善あり","なし","なし","軽微","元々便秘気味で便秘薬を服用することもあった。（報告書に記載あり）"]
[8,"2022-01-25","女性","60代","発熱、吐き気・嘔吐","2020-12-09","令和3年12月10日：発熱\n令和3年12月23日：嘔吐","中止後に使用再開、再使用で再発あり","なし","あり","軽度","12月9日2粒摂取、10日に1粒摂取したところ発熱。日中は平熱だが、夜になると発熱を繰り返した。その後12月16日～18日まで1日1粒摂取、発熱続くため、12月17日に病院受診。原因不明と医師より言われた。（担当医に本品の摂取は未申告）12月19日～22日まで摂取中止したところ、体調が回復したため、12月23日に1粒摂取したところ嘔吐とのこと。（報告書に記載あり）"]
[9,"2022-01-25","男性","40代","下痢","令和2年12月頃","令和3年12月末頃に摂取量を増量してから","増量後に症状悪化","あり","あり","軽微","10年前に類似商品を摂取した事があるが、その際は便秘気味であったため問題はなかったとのこと。（報告書に記載あり）"]
[10,"2022-02-10","女性","60代","下痢","開始日：令和3年8月2日\n中止日：令和3年8月3日","令和3年8月3日頃","中止後の症状不明","不明","なし","軽微"]
[11,"2022-02-10","女性","50代","下痢","開始日：令和2年3月12日\n中止日：令和3年8月29日","令和2年3月12日頃","中止後再使用で症状再発あり","不明","なし","軽微"]
[12,"2022-02-10","女性","不明","下痢","開始日：令和3年10月8日\n中止日：令和3年10月15日","令和3年10月10日頃","中止後に症状改善あり","不明","あり","軽微"]
[13,"2022-02-10","女性","不明","服用し始めてからよくトイレに行く。就寝中も何度か行くようになった。","開始日：令和4年1月25日\n中止日：令和4年2月1日","令和4年1月26日頃","中止後の症状不明","なし","あり","軽微"]
[14,"2022-03-04","女性","60代","下痢","不明（ただし、摂取期間は約10日間）","不明","継続摂取","あり","なし","軽微","コレウス・フォルスコリーを含む製品Aだけを摂取していた時は、問題なかったが、コレウス・フォルスコリーを含む製品Bを併用したところ、下痢になったとのこと。（報告書に記載あり。）"]
[15,"2022-03-04","女性","60代","下痢","不明（ただし、摂取期間は3日間）","本品摂取後直ぐ","中止後症状改善あり","なし","あり","軽微","本品を1日4粒摂取すると下痢をしてしまい、すっきりせず残っている感じがする。1日3粒だと下痢はしないが、すっきりしないとのこと。（報告書に記載あり。）"]
[16,"2022-03-04","女性","70代","下痢","開始日：令和4年1月10日頃\n中止日：不明","摂取し始めてから","減量し継続","なし","なし","軽微","摂取し始めてから便が緩くなり、下痢が続いている。摂取粒数を減らしても症状に変化はなかった。過去にコレウス・フォルスコリーを含む製品を摂取した時は、下痢はしなかったとのこと（報告書に記載あり。）"]
[17,"2022-03-04","女性","70代","胃の調子が悪い","不明（ただし、摂取期間は1ヶ月）","ここ1週間くらい","継続摂取","あり","なし","軽微","昨年の12月終わりから当該製品を摂取し始めたが、ここ1週間くらい胃の調子が悪い。食べ物を吐いたり、胃がドーンと詰まった感じが持続するとの申告でした。（報告書に記載あり。）"]
[18,"2022-03-04","女性","70代","下痢","不明（ただし、摂取期間は1週間）","本品を摂取開始した翌朝から","継続摂取","不明","不明","軽微"]
[19,"2022-03-04","女性","60代","かゆみ・発疹","開始日：令和4年2月4日頃\n中止日：令和4年2月14日迄","令和4年2月7日頃","中止後再使用で症状あり","なし","なし","軽微","令和4年2月4日頃から本品の摂取を開始し、最初は問題なかったが、2月7日頃に摂取した時に全身がかゆくなった。我慢出来ないほどのかゆみだったため、お風呂に入ったら症状が軽くなり、1時間ほどで症状緩和。その後、中止していたが、2月13日に再摂取したところ、同様の症状が発現し、お風呂に入って、現在、症状は回復したとのこと。（報告書に記載あり。）"]
[20,"2022-03-04","女性","40代","腹痛、下痢","不明","不明","中止後症状改善あり","なし","なし","軽微","1袋目を摂取し終えた頃に腹痛と下痢があり、その後も2袋目を摂取し始めたが、摂取するたびに同じ症状が出たとのこと。（報告書に記載あり。）"]
[21,"2022-03-04","女性","40代","両足のふくらはぎから足首にかけて浮腫みが発現。その後、10日程経つがずっと浮腫んでいる。","不明（ただし、摂取期間は13日間）","本品摂取開始3日後頃","継続摂取","あり","あり","軽微"]
[22,"2022-03-11","女性","不明","気持ち悪さ","不明","不明","不明","不明","不明","軽微"]
[23,"2022-04-14","女性","50代","便量が減って、軟便傾向になった。","不明","本品摂取し始めてから","減量後に症状改善なし","あり","なし","軽微"]
[24,"2022-04-14","女性","50代","軟便","不明","不明","継続摂取","不明","不明","軽微","症状に対して医療機関を受診しているが、担当医に当該製品の摂取について申告せず。（報告書に記載あり）"]
[25,"2022-04-14","女性","40代","下痢","不明","コレウス・フォルスコリーを含む製品A及び製品Bを摂取し始めてから","製品Aを中止後に症状改善あり、製品Bを継続摂取","あり","あり","軽微","製品Aと製品Bを同時に摂取開始し、下痢が続いたため、製品Aを摂取開始１か月後に中止したが、製品Bは摂取を継続した。製品Bだけだと排便回数や下痢の症状を軽減したが、便が緩い状態は続いているとの申告。（報告書に記載あり）"]
[26,"2022-04-14","女性","70代","下痢","不明（摂取期間は１週間）","本品を摂取した当日から","継続摂取","あり","なし","軽微"]
[27,"2022-04-14","女性","60代","下痢","2022-03-06","本品摂取１時間後","中止後に症状改善あり","不明","不明","軽微"]
[28,"2022-04-14","女性","40代","股とお尻の間にしこりができた","令和4年3月3日、4日頃から6日","令和4年3月3日～令和4年3月4日頃","中止後に症状改善あり","あり","なし","軽度","当該製品以外のいわゆる「健康食品」（製品A）を令和4年1月から、また別の当該製品以外のいわゆる「健康食品」（製品B、製品C）を2月末から、該当製品、更に別の当該製品以外のいわゆる「健康食品」（製品D、製品E）を3月3日～4日から摂取開始したが、同日頃から股とお尻の間にしこりができた。性病を心配され、婦人科を受診したが性病ではなかったが、塗り薬を処方された。担当医にサプリメントの摂取については申告していない。サプリメントを3月6日から中止し、塗り薬を塗っているからか、幾分しこりは軟らかくなった気がすると申告。\n症状経過は不明。（報告書に記載あり）"]
[29,"2022-04-14","女性","60代","下痢","2022-02-28","2022-03-01","中止後に症状改善あり","あり","なし","軽微","2月28日の夜に摂取した処、翌日に下痢となり、摂取量を減らしても症状は変わらなかった。摂取を中止した処、書状は改善傾向と申告。（報告書に記載あり）"]
[30,"2022-04-14","女性","50代","摂取１回目：体のかゆみ\n摂取２回目：血圧の低下、全身に湿疹、救急搬送され本品が原因のアナフィラキシーではないかと診断された。","不明","本品摂取後すぐ","中止後に症状改善あり","なし","なし","中等度","2年前に当該製品を摂取した際に体がかゆくなったが、その時は我慢した。別の日に再度摂取した処、血圧が急激に低下し全身に湿疹ができ、救急搬送され、搬送先で本品が原因のアナフィラキシーではないかと診断された。１日入院し、その後もかゆみは１週間程度続いたが完治した。本件をワクチン接種の際に医師に説明した処、医師よりメーカーに報告した方が良いのではないかと言われたため、弊社相談窓口に電話したと申告。\n症状経過は入院治療にて治癒。（報告書に記載あり）"]
[31,"2022-04-14","女性","70代","下痢","不明","摂取数日後","継続摂取","あり","あり","軽微","当該製品（製品A）と当該製品以外のいわゆる「健康食品」（製品B）を朝に、また別の当該製品以外のいわゆる「健康食品」（製品C)を夜に摂取し始めて数日後お腹が緩くなったと申告。（報告書に記載あり）"]
[32,"2022-04-14","女性","40代","下痢","令和4年3月17日～3月24日","2022-03-23","中止後に症状改善あり","なし","なし","軽微","当該製品を摂取し始めてから軟便気味であったが、3月23日から下痢になった。コレウス・フォルスコリーが配合している粒のみ抜いて摂取したところ、翌日は軟便程度で下痢にはならなかったと申告。（報告書に記載あり）"]
[33,"2022-04-14","女性","50代","下痢","不明（摂取期間は４～５年間）","不明","継続摂取","あり","なし","軽度","４～５年前から毎日摂取ではなく、脂っこい食事をしたときにまとめて２又は４粒を摂取していた。腹痛や食欲減退もないが、水っぽい下痢が１か月続くので、３年前に胃や大腸の検査をしたが問題はなかった。摂取をやめたら症状が治まるので、当該製品が原因と思っていたが、粒数を減らして摂取再開しており、軟便になっていると申告。\n症状経過は不明。（報告書に記載あり）"]
[34,"2022-05-24","女性","50代","全く眠れなくなった。","不明（摂取期間は２日間）","摂取開始後","継続摂取","なし","あり","軽微"]
[35,"2022-05-24","女性","不明（80歳以上）","下痢","不明（摂取期間は15日間）","朝摂取すると朝食後と昼食後に下痢になる","継続摂取","不明","不明","軽微"]
[36,"2022-05-24","女性","40代","肝機能数値が高かった。","不明（摂取期間は数年）","令和4年の3月の健康診断で発覚","継続摂取","あり","あり","軽微","令和4年3月の健康診断で肝機能数値が高かった。再検査した処、普段の数値に比べると倍ではあるが、前回の健康診断の数値からは下がっており、平均から少し出ている程度であるため、経過観察となった。その1週間後に献血をした際の肝機能の数値は前回の健康診断の数値に戻っていたとの申告であった、（報告書に記載あり）"]
[37,"2022-05-24","女性","40代","腹痛、軟便","不明（摂取期間は1ヶ月間）","腹痛：飲み始めてすぐ\n軟便：摂取再開後","継続摂取","なし","あり","軽微","本品を飲み始めて腹痛があったため、何日か中止していた。その後、再開した処、初回摂取時よりお腹の痛みはそこまでではなかったが、お腹が緩くなった。下痢というほどではなく、少し緩いという程度とのこ申告であった。（報告書に記載あり）"]
[38,"2022-05-24","女性","60代","ニキビの腫れているような赤み","2022-04-11","摂取開始1週間後","継続摂取","あり","あり","軽微","本品を4月11日から摂取し始めて、1週間後ぐらいから顎のあたりにぼつぼつが2,3個できた。かゆみはなく、ニキビの腫れているような赤みで胃が荒れたときの症状に似ているが、胃の調子も問題なく体調はよいとの申告であった。（報告書に記載あり）"]
[39,"2022-05-24","女性","50代","腹痛、軟便","令和4年4月27日から令和4年4月30日","令和4年4月29日の夜","中止後に症状改善あり","なし","なし","軽微","本品摂取3日目の夜に筋肉痛のような腹痛が2～3時間発生した。朝は軟便となったとの申告であった。（報告書に記載あり）"]
[40,"2022-05-24","男性","40代","軟便","不明（摂取期間は2～3週間程度）","不明","不明","不明","不明","軽微","本品をワクチン接種後も摂取してよいか相談の為、相談窓口に連絡があり、指定成分等含有食品について説明した処、確かに便が緩くなっている。前に別のコレウス・フォルスコリーを含む製品を摂取した時も便が緩くなったとの申告であった。（報告書に記載あり）"]
[41,"2022-06-15","女性","60代","かゆみ・発疹","令和４年４月～継続中","令和４年５月頭から","継続摂取","あり","なし","軽微"]
[42,"2022-06-15","女性","40代","便秘、お腹の張り","不明（摂取期間は約３か月間）","令和４年４月頃","継続摂取","なし","あり","軽微"]
[43,"2022-06-15","女性","50代","下痢、胃痛","不明（摂取回数は１回）","摂取１時間後くらい","中止後に症状改善あり","あり","なし","軽微","本品を１粒摂取したところ、摂取１時間後くらいから激しい胃痛と下痢を起こした。過去にも同様の症状が起きたことが何度もあり、その際は化学物質が原因と言われたり、魚などアレルギーではと言われたりしたが原因は特定できなかった。以前にもコレウス・フォルスコリーを含む食品や他のいわゆる「健康食品」を摂取した際は問題なく、他の食品の食べても同様の症状は起きないとの申告。（報告書に記載あり）"]
[44,"2022-06-15","女性","50代","軟便","不明（摂取期間は2日間）","不明","不明","不明","不明","軽微","以前にコレウス・フォルスコリーを含む食品を摂取した際は下痢になったとの申告。（報告書に記載あり）"]
[45,"2022-06-28","女性","20代","吐気・嘔吐、目眩、眠気、胃のむかつき","不明","不明","不明","不明","不明","軽微"]
[46,"2022-07-26","女性","50代","お腹が緩くなり、ガスが溜まるようになった。","不明（摂取期間は1か月半くらい）","令和4年5月22日頃","継続摂取","なし","なし","軽微"]
[47,"2022-07-26","男性","30代","夢遊病のような症状","不明（摂取期間は1週間）","摂取し始めてから","継続摂取","なし","あり","軽微","本品を摂取し始めてから夢遊病のような症状が発現した。摂取者は布団で朝まで寝ているつもりだが、家族から台所や廊下で寝ていたと言われ気づいた。メンタルヘルスの治療を受けているため、かかりつけ病院を受診したが、主治医がお休みだった為、代理の医師に話を聞いてもらった処、念の為、本品の摂取中止の指示と治療薬は処方量が多い可能性があるので、主治医に量を減らすように伝えるよう言われたとの申告。（報告書に記載あり）"]
[48,"2022-07-26","女性","70代","腹痛、下痢","不明（摂取期間は10年間）","不明","不明","あり","なし","軽微"]
[49,"2022-07-26","女性","70代","軟便","不明（摂取期間は１年間）","摂取後１日以内","中止後に症状改善あり","あり","あり","軽微","以前に本品を朝２粒摂取した処、お腹の痛みはないが便が緩くなったので、翌日から１粒に減量したら症状が改善したので、摂取量を減らして再開してよいかとのご相談あり。連絡時に摂取中止していなかったため、本品の摂取中止を推奨した。（報告書に記載あり）"]
[50,"2022-07-26","男性","40代","吐気・嘔吐","不明（摂取期間は３日間）","摂取１日目","中止後再使用で症状再発あり","あり","なし","軽微","本品を１日目に４粒摂取した処、吐き気がして気分が悪くなり、２日目に摂取量を２粒に減量したが、同様の症状が発現した。１日摂取を中止したら、体調は戻ったが、再開したら同様の症状が発現したとの申告。（報告書に記載あり）"]
[51,"2022-07-26","女性","60代","数日前から調子が悪いと感じ、血圧を測ったら（収縮期血圧）100mmHgを切っていた。","不明（摂取期間は１週間）","数日前から","継続摂取","あり","あり","軽微"]
[52,"2022-07-26","女性","60代","クレアチニン値及び尿酸値の上昇","不明（摂取期間は10年以上）","令和4年3月の検査時に発覚","継続摂取","なし","あり","軽微","本品を10年以上摂取していたが、今年の3月の検査でクレアチニン値及び尿酸値が境界線を越えた為、主治医に相談するように言われた。主治医の下で再検査した処、数値が高かったとの申告。（報告書に記載あり）"]
[53,"2022-07-26","女性","20代","下痢、ふらつき、頻脈、血圧低下（115/72、今までは拡張期血圧は80台だった）","不明（摂取期間は１週間弱）","摂取２～３日後：下痢\n摂取３～４日後：ふらつき、頻脈、血圧低下","中止後に症状改善なし","なし","なし","軽微"]
[54,"2022-08-17","女性","60代","便がやや軟らかくなった","不明（摂取期間は半年間）","摂取開始してから比較的すぐ","中止後に症状改善あり","あり","なし","軽微","元々便秘だったが、本品を摂取し始めてから比較的すぐに困るほどではないが便がやや軟らかくなったとの申告。（報告書に記載あり）"]
[55,"2022-08-17","女性","不明（80歳以上）","軟便","不明（摂取期間は半月間）","摂取開始してすぐ","中止後に症状改善あり","あり","あり","軽微","本品を摂取し始めてすぐ下痢ではないが軟便になったとの申告。（報告書に記載あり）"]
[56,"2022-08-17","女性","40代","ふわふわするような感じとお腹がぐるぐるなる症状","2022-07-06","令和4年7月7日の朝摂取後","中止後に症状改善あり","なし","なし","軽微","本品を令和4年7月6日、7月7日朝及び昼に摂取しており、7月7日朝に摂取した後にふわふわするような感じとぐるぐるなる症状が起きたとの申告。（報告書に記載あり）"]
[57,"2022-08-17","女性","60代","軟便","2022-07-20","2022-07-21","不明","不明","不明","軽微","元々便秘傾向だが、令和4年7月20日の夕食後に本品を2粒摂取した処、7月21日に便が緩くなったとの申告。（報告書に記載あり）"]
[58,"2022-08-17","女性","40代","下痢","不明（摂取期間は1週間）","本品摂取開始3日後","中止後に症状改善あり","なし","なし","軽微","本品摂取開始3日後に下痢が生じたとの申告。（報告書に記載あり）"]
[59,"2022-08-19","女性","60代","頭痛、腹痛、下痢、吐気・嘔吐、胃の張りを感じる","令和4年6月9日のみ","2022-06-09","中止後に症状改善あり","なし","あり","軽微","摂取者は持病があるため2か月に１度通院して投薬を受けているとのこと。薬は持病治療のために継続して服用している。（通院時に）かかりつけ医にサプリメントの飲用を相談したところ「薬の用法用量を守っていれば問題ない」と言う回答だったとのこと。症状経過は不明。（報告書に記載あり）"]
[60,"2022-08-19","女性","30代","腹痛、下痢、月経不順、胃痛","不明","不明","不明","不明","不明","軽微","商品レビューにて体調不良の報告があり。メールにて聞き取りをご案内するもご返信が無かった。（報告書に記載あり）"]
[61,"2022-08-19","男性","40代","下痢","不明","2022-06-29","中止後に症状改善あり","なし","なし","軽微"]
[62,"2022-08-19","女性","40代","下痢、月経不順","不明","2022-06-25","中止後に症状改善なし","あり","なし","軽微"]
[63,"2022-09-07","不明","不明","アレルギー症状","令和3年10月～令和4年４月","不明","不明","不明","不明","軽度","医療機関の薬剤師の方から当該製品Aと当該製品以外のいわゆる「健康食品」を摂取後にアレルギー症状が生じた患者がおり、薬剤誘発生リンパ球刺激試験の検査を実施したい為、原材料の提供は可能か問い合わせがあった。2商品の原材料を医療機関へ送付した。（報告書に記載あり）症状経過：軽快(自治体からの追加情報）"]
[64,"2022-09-07","女性","70代","疲れやすい","不明（摂取期間は数ヶ月間）","2~3ヶ月前","継続","不明","不明","軽微","当該製品を摂取しているから疲れやすいのではと思っており、当該製品を摂取する以外に変わったことはなく、持病や服薬もなく、検査で指摘されている項目もないという申告。（報告書に記載あり）"]
[65,"2022-09-07","男性","40代","アナフィラキシーショック","令和4年5月10日の1回のみ","摂取30分後","中止後症状改善あり","なし","あり","軽度","当該製品摂取後30分以内に口腔内の腫れ、頭皮の発汗とかゆみ、たちくらみがあって救急搬送され、そのときは収縮期血圧が80、酸素濃度が82%だったと聞いている。担当医より原因を調べたい為、原材料の提供が可能かメーカーに問い合わせるよう指示があった。平成28年にコレウス・フォルスコリーを含む製品を摂取した時も意識消失があったが、その時は原因不明で検査等はしていないとの申告。（報告書に記載あり）症状経過：回復(自治体からの追加情報）"]
[66,"2022-09-07","女性","50代","軟便、胃部不快感","不明（摂取期間は数日間）","当該製品を摂取し始めてから","中止後症状改善あり","なし","あり","軽微","医者からダイエットをすすめられて当該製品の摂取を開始した処、軟便になり、かつ通常のお通じとは異なり、腹痛などはなく気づかないうちに少し排便があったりした。また、色々な持病がある為、当該製品が原因ではないかもしれないが、胃部のあたりが気持ち悪くなったとの申告。（報告書に記載あり）"]
[67,"2022-09-07","女性","40代","下痢、吐気・嘔吐","製品A：令和4年8月1日\n製品B：令和4年8月10日","吐気：令和4年8月10日に製品Aを摂取し始めてから徐々に\n下痢：令和4年8月10日に製品Bを摂取し始めてから\n※製品Aは指定成分等含有食品ではないが、摂取し始めてから生じた症状が、指定成分等含有食品である製品B摂取時も継続していたため、記載","継続","なし","あり","軽微","令和4年8月1日から製品Aを昼夜に摂取し始めてから、薬の副作用もあるが、徐々に吐き気が生じてきた。8月10日から製品Bを摂取し始めた処、下痢を生じ、2品を一緒に摂取すると体調が悪くなる気がする。もともと医者からはサプリメントや健康食品を摂取しないように指示が出ているが、隠れて摂取しているとの申告。（報告書に記載あり）"]
[68,"2022-09-13","女性","60代","下痢","不明","2022-07-20","中止後症状改善あり","不明","あり","軽微"]
[69,"2022-10-04","女性","40代","お腹の調子が悪く、便が緩い","不明（ただし、摂取期間は2日間）","2022-08-22","継続","不明","不明","軽微","令和4年8月22日よりお腹の調子が悪く便が緩くなった。もともと胃腸が弱く、エアコンの風が当たったことも原因かもしれないとの申告。（報告書に記載あり）"]
[70,"2022-10-04","女性","70代","お腹が緩くなる","不明（ただし、摂取期間は数ヶ月）","不明","中止後症状改善あり","不明","不明","軽微","当該製品を数ヶ月摂取しており、お腹が緩くなることがあるので、今は摂取を中止しているという申告。（報告書に記載あり）"]
[71,"2022-10-04","女性","60代","便の状態には問題はないが、ガスが出た時に黄色い粘性のあるものが出てくる","2022-08-28","2022-08-29","継続","不明","不明","軽微","当該製品摂取3日目に便の状態は問題ないが、ガスが出た時に黄色い粘性のあるものが出てくるとの申告。（報告書に記載あり）"]
[72,"2022-10-04","女性","60代","下痢","不明（ただし、摂取期間は7～10日間）","摂取当日か翌日","減量後に症状改善なし\n中止後症状改善あり","あり","あり","軽微","当該製品を朝2粒、夜2粒摂取した処、摂取当日か翌日に下痢が生じ、摂取量を朝2粒、夜1粒に減量したが症状は不変だった。本品を摂取中止後は症状が改善しているとの申告。（報告書に記載あり）"]
[73,"2022-10-04","女性","50代","便がやや軟らかくなった","不明（ただし、摂取期間は約3ヶ月）","摂取開始約1ヵ月後","継続","あり","なし","軽微","本品の摂取開始してから便が軟らかくなったようで、便器に付くようになってしまった。排便回数は変わっていないとの申告。（報告書に記載あり）"]
[74,"2022-10-04","女性","40代","胃痛、かゆみ・発疹","2022-08-25","胃痛：令和4年8月25日から数日\nかゆみ・発疹：令和4年9月2日","継続","あり","あり","軽微","令和4年8月25日から当該製品を運動前に2粒、就寝前に1粒、数日摂取した処、胃痛が生じて摂取中止した。1週間ほどして体調が回復したので、令和4年9月2日に2粒摂取して運動を始めた処、手のあたりに少しかゆみのある赤い発疹が生じ、その後全身に広がったとの申告。（報告書に記載あり）"]
[75,"2022-10-04","女性","50代","下痢","不明（ただし、摂取期間は約3ヶ月）","摂取開始してから","継続","不明","不明","軽微","本品を摂取開始してから時々お腹が緩くなり、下痢をすることがあるとの申告。（報告書に記載あり）"]
[76,"2022-10-04","女性","70代","水状ではなく、軟らかい程度だが、お腹が緩くなった","不明（ただし、摂取期間は2ヶ月弱）","摂取開始してから1週間後","中止後症状改善あり","あり","なし","軽微","当該製品を摂取してから1週間後に水状ではなく、軟らかい程度だがお腹が緩くなった。摂取継続していたが、ここ10日間摂取をしていたら、便の状態は戻ったとの申告。（報告書に記載あり）"]
[77,"2022-10-25","男性","50代","アナフィラキシー","令和4年8月上旬から","1回目、2回目の発現日は不明。3回目は令和4年9月。","不明","なし","あり","中等度","１回目のショック時の前に４日間くらい規定用量を摂取。しばらく中断していたが、２、３回目のショック直前に規定用量を摂取した。医療機関の見解はアナフィラキシーとされている。症状経過：入院治療で治癒。(自治体からの追加情報）"]
[78,"2022-11-02","女性","60代","昨晩飲んで今起きた際に起きるのがつらく感じ、朝の散歩の前に6錠飲んで行ったが、いつもの距離を歩けないほど、体調に違和感を感じた。不安な気持ちになるような感じがしたとのこと。","令和4年9月17日（頃）～令和4年9月18日（頃）","令和4年9月18日頃","中止後症状不明","なし","なし","軽微"]
[79,"2022-11-17","男性","50代","下痢","令和4年9月18日から\n使用中止日は不明","2022-09-19","中止後症状改善あり","あり","なし","軽微"]
[80,"2022-11-17","女性","30代","腹痛、下痢","不明","不明","不明","不明","不明","軽微"]
[81,"2022-11-25","男性","50代","胸やけ","不明（ただし、摂取期間は7～10日間）使用中止日は、令和4年9月26日頃","本品摂取5～6分後","中止後症状改善あり","なし","なし","軽微","慢性胃炎の治療中で、当該製品摂取5～6分後に胸やけが起こったため、胃薬を服用した。令和4年9月26日頃に摂取を中止して症状が改善したとの申告であった。（報告書に記載あり）"]
[82,"2022-11-25","女性","50代","息苦しい感じになり、口の周りや腕の内側がかゆくなった。","不明（ただし、摂取期間は1日間）","本品摂取約1時間後","中止後症状改善なし","あり","なし","軽微","当該製品以外のいわゆる健康食品（A製品）を昼食後、夕食後に1粒ずつ摂取し、次の日に当該製品を昼食後2粒、夕食後1粒、A製品を昼食後、夕食後1粒ずつ摂取した処、摂取約1時間後に息苦しい感じになり、口の周りや腕の内側がかゆくなったとの申告であった。（報告書に記載あり）"]
[83,"2022-11-25","女性","60代","日中に頻尿になった気がする","使用開始日は不明（ただし、摂取期間は1ヶ月弱）、継続中","摂取開始後すぐ","継続","あり","あり","軽微","当該製品と他のいわゆる健康食品の摂取を開始し始めた頃から日中に頻尿になった気がするとの申告であった。（報告書に記載あり）"]
[84,"2022-11-25","女性","60代","お腹が緩くなり、かつ便が少しずつしか出なくなり、便意が常にある。","使用開始日は不明、継続中","摂取開始してから","中止後症状改善あり\n中止後再使用で症状再発あり","不明","なし","軽微","当該製品を摂取するとお腹が緩くなり、かた便が細く少しずつしか出なくなり、便意が常にある。一度中止して症状はなくなったが、再開すると同様の症状が発現するとの申告であった。（報告書に記載あり）"]
[85,"2022-11-25","女性","60代","軟便","使用開始日は不明（ただし、摂取期間は3ヶ月間）、継続中","不明","継続","不明","不明","軽微","体調不良者（奥様）の夫より、ご連絡があり、奥様が摂取開始してから軟便傾向であるとの申告であった。（報告書に記載あり）"]
[86,"2022-11-25","女性","50代"," お腹が膨れるような感じがあって、その後、軟らかい便が出る。　","使用開始日は不明（ただし、摂取期間は2ヶ月間）、\n継続中","本品摂取後","中止後症状改善あり\n中止後再使用で症状再発あり\n継続","なし","あり","軽微","当該製品を摂取するとお腹が膨れるような感じがあって、その後に軟らかい便が出るという申告であった。（報告書に記載あり）"]
[87,"2022-12-16","女性","30代","下痢","不明","2022-11-25","中止後症状改善なし","なし","なし","軽微"]
[88]
[89]
[90]
[91]
[92]
[93]
[94]
[95]
[96]
[97]
[98]
[99]
[100]
[101]
[102]
[103]
[104]
[105]
[106]
[107]
[108]
[109]
[110]
[111]
[112]
[113]
[114]
[115]
[116]
[117]
[118]
[119]
[120]
[121]
[122]
[123]
[124]
[125]
[126]
[127]
[128]
[129]
[130]
[131]
[132]
[133]
[134]
[135]
[136]
[137]
[138]
[139]
[140]
[141]
[142]
[143]
[144]
[145]
[146]
[147]
[148]
[149]
[150]
[151]
[152]
[153]
[154]
[155]
[156]
[157]
[158]
[159]
[160]
[161]
[162]
[163]
[164]
[165]
[166]
[167]
[168]
[169]
[170]
[171]
[172]
[173]
[174]
[175]
[176]
[177]
[178]
[179]
[180]
[181]
[182]
[183]
[184]
[185]
[186]
[187]
[188]
[189]
[190]
[191]
[192]
[193]
[194]
[195]
[196]
[197]
[198]
[199]
[200]
[201]
[202]
[203]
[204]
[205]
[206]
[207]
[208]
[209]
[210]
[211]
[212]
[213]
[214]
[215]
[216]
[217]
[218]
[219]
[220]
[221]
[222]
[223]
[224]
[225]
[226]
[227]
[228]
[229]
[230]
[231]
[232]
[233]
[234]
[235]
[236]
[237]
[238]
[239]
[240]
[241]
[242]
[243]
[244]
[245]
[246]
[247]
[248]
[249]
[250]
[251]
[252]
[253]
[254]
[255]
[256]
[257]
[258]
[259]
[260]
[261]
[262]
[263]
[264]
[265]
[266]
[267]
[268]
[269]
[270]
[271]
[272]
[273]
[274]
[275]
[276]
[277]
[278]
[279]
[280]
[281]
[282]
[283]
[284]
[285]
[286]
[287]
[288]
[289]
[290]
[291]
[292]
[293]
[294]
[295]
[296]
[297]
[298]
[299]
[300]
[301]
[302]
[303]
[304]
[305]
[306]
[307]
[308]
[309]
[310]
[311]
[312]
[313]
[314]
[315]
[316]
[317]
[318]
[319]
[320]
[321]
[322]
[323]
[324]
[325]
[326]
[327]
[328]
[329]
[330]
[331]
[332]
[333]
[334]
[335]
[336]
[337]
[338]
[339]
[340]
[341]
[342]
[343]
[344]
[345]
[346]
[347]
[348]
[349]
[350]
[351]
[352]
[353]
[354]
[355]
[356]
[357]
[358]
[359]
[360]
[361]
[362]
[363]
[364]
[365]
[366]
[367]
[368]
[369]
[370]
[371]
[372]
[373]
[374]
[375]
[376]
[377]
[378]
[379]
[380]
[381]
[382]
[383]
[384]
[385]
[386]
[387]
[388]
[389]
[390]
[391]
[392]
[393]
[394]
[395]
[396]
[397]
[398]
[399]
[400]
[401]
[402]
[403]
[404]
[405]
[406]
[407]
[408]
[409]
[410]
[411]
[412]
[413]
[414]
[415]
[416]
[417]
[418]
[419]
[420]
[421]
[422]
[423]
[424]
[425]
[426]
[427]
[428]
[429]
[430]
[431]
[432]
[433]
[434]
[435]
[436]
[437]
[438]
[439]
[440]
[441]
[442]
[443]
[444]
[445]
[446]
[447]
[448]
[449]
[450]
[451]
[452]
[453]
[454]
[455]
[456]
[457]
[458]
[459]
[460]
[461]
[462]
[463]
[464]
[465]
[466]
[467]
[468]
[469]
[470]
[471]
[472]
[473]
[474]
[475]
[476]
[477]
[478]
[479]
[480]
[481]
[482]
[483]
[484]
[485]
[486]
[487]
[488]
[489]
[490]
[491]
[492]
[493]
[494]
[495]
[496]
[497]
[498]
[499]
[500]
[501]
[502]
[503]
[504]
[505]
[506]

{"sheet":"２．ドオウレン","index":2,"n_rows":11,"n_cols":12,"rows_kept":11,"cut":false,"hidden":false,"merged":[[1,1,1,11],[6,0,6,11]]}
[]
[null,"指定成分等含有食品との関連が疑われる健康被害情報一覧"]
[]
[null,null,null,null,null,null,null,null,null,null,null,"医薬・生活衛生局食品基準審査課"]
[null,null,null,null,null,null,null,null,null,null,null,"令和5年7月10日時点"]
[]
["健康被害情報の内容の追加及び変更（届出対象でないと判明した場合を含む。）の報告により、随時更新しています。"]
[]
["２．ドオウレンを含む食品（0件）"]
["No.","健康被害情報受理日","性別","年齢","主な症状\n（自己申告を含む）","摂取開始日・期間","症状発現日","症状発現後の使用状況・症状","他のいわゆる健康食品の摂取状況","医薬品の\n摂取状況","重篤度\n（保健所使用欄）","備考"]
[null,null,null,null,null,"健康被害情報なし"]

{"sheet":"３．プエラリア・ミリフィカ","index":3,"n_rows":29,"n_cols":12,"rows_kept":29,"cut":false,"hidden":false,"merged":[[1,1,1,11],[6,0,6,11]]}
[]
[null,"指定成分等含有食品との関連が疑われる健康被害情報一覧"]
[]
[null,null,null,null,null,null,null,null,null,null,null,"医薬・生活衛生局食品基準審査課"]
[null,null,null,null,null,null,null,null,null,null,null,"令和5年7月10日時点"]
[]
["健康被害情報の内容の追加及び変更（届出対象でないと判明した場合を含む。）の報告により、随時更新しています。"]
[]
["３．プエラリア・ミリフィカを含む食品（19件）"]
["No.","健康被害情報受理日","性別","年齢","主な症状\n（自己申告を含む）","摂取開始日・期間","症状発現日","症状発現後の使用状況・症状","他のいわゆる健康食品の摂取状況","医薬品の\n摂取状況","重篤度\n（保健所使用欄）","備考"]
[1,"2022-01-05","女性","60代","まぶたや手足が腫れるような浮腫む感じと生理前のような胸の張りを感じる。","不明","摂取翌日","中止後症状改善あり","あり","なし","軽微","閉経前に本品と大豆イソフラボンを摂取しており、その際はとても調子が良かったが、久々に摂取した処、摂取翌日にまぶたや手足が腫れる様な浮腫むような感じがあり、生理前のような胸の張りもある。摂取しないと症状はないとのこと。（報告書に記載あり）"]
[2,"2022-02-08","女性","50代","不正性器出血","2021-12-06","2021-12-06","中止後症状改善なし","不明","あり","軽微"]
[3,"2022-03-11","男性","不明","かゆみ・発疹、ほてり","不明","不明","不明","不明","不明","軽微"]
[4,"2022-03-11","不明","不明","便秘","不明","不明","不明","不明","不明","軽微"]
[5,"2022-03-11","女性","不明","月経出血量増加による貧血","開始日：令和4年2月21日\n中止日：不明","2022-02-21","中止後症状改善あり","あり","なし","軽微"]
[6,"2022-05-06","女性","20代","月経不順","不明","不明","不明","不明","不明","軽微"]
[7,"2022-05-06","女性","不明","下痢、めまい","不明","不明","不明","不明","不明","軽微"]
[8,"2022-05-06","女性","40代","月経不順（予定より10日ほど遅れた）","開始日：令和2年9月18日頃\n終了日：不明","令和2年 10月 10日頃","中止後症状改善あり","あり","なし","軽微"]
[9,"2022-05-06","女性","不明","腹痛、胃痛","不明","不明","不明","不明","不明","軽微"]
[10,"2022-05-06","女性","30代","気持ちの落ち込み、動悸","不明","不明","不明","不明","不明","軽微"]
[11,"2022-05-06","女性","30代","動悸、不眠","不明","不明","不明","不明","不明","軽微"]
[12,"2022-05-06","女性","20代","頭痛、吐気・嘔吐","開始日：令和4年3月20日頃\n終了日：不明","令和4年 3 月 25日頃","中止後症状改善あり","なし","なし","軽微"]
[13,"2022-05-24","女性","50代","閉経後出血","不明（摂取期間は1～2週間）","2022-04-10","継続摂取","なし","あり","軽微","令和4年1月に閉経の診断を受けたが、本品を1～2週間摂取した処、少量の不正出血ではなく、量も多く、通常の月経のような出血が生じたとの申告であった。（報告書に記載あり）"]
[14,"2022-07-15","女性","40代","性器不正出血、健診で甲状腺の腫れを指摘された。","不明","不明","中止後の症状不明","不明","不明","軽微"]
[15,"2022-07-29","女性","30代","性器不正出血","令和4年7月14日～令和4年7月18日","摂取5日後","中止後の症状不明","不明","なし","軽微"]
[16,"2022-09-07","女性","40代","腹痛、不正性器出血","不明（長時間利用しているとのこと)","不正出血：以前から\n下腹部痛：令和4年4月摂取開始後","不明","なし","なし","軽微","当該製品を長時間利用しており、以前から摂取中は不正出血があり、摂取中止すると改善し、再開すると出血するのを繰り返していた。令和4年4月に再開した処、今回は不正出血に加え、下腹部痛もあった為、婦人科を受診した。婦人科では、体に異常はないが、プエラリア・ミリフィカのような女性ホルモン様の働きが合わなかったのではないかと言われたとの申告。（報告書に記載あり）"]
[17,"2022-09-13","女性","不明","「体調不良になった」のみで詳細不明","不明","不明","不明","不明","不明","軽微"]
[18,"2022-11-04","女性","40代","不正性器出血","不明","不明","中止後症状改善なし","不明","不明","不明","申出者は医療機関を受診しているものの，治療内容が不明であることから，重篤度を不明とした。（報告書に記載あり）"]
[19,"2022-11-17","男性","30代","胸にシコリができた","不明","不明","不明","不明","不明","軽微"]

{"sheet":"４．ブラックコホシュ","index":4,"n_rows":20,"n_cols":12,"rows_kept":20,"cut":false,"hidden":false,"merged":[[1,1,1,11],[6,0,6,11]]}
[]
[null,"指定成分等含有食品との関連が疑われる健康被害情報一覧"]
[]
[null,null,null,null,null,null,null,null,null,null,null,"医薬・生活衛生局食品基準審査課"]
[null,null,null,null,null,null,null,null,null,null,null,"令和5年7月10日時点"]
[]
["健康被害情報の内容の追加及び変更（届出対象でないと判明した場合を含む。）の報告により、随時更新しています。"]
[]
["４．ブラックコホシュを含む食品（10件）"]
["No.","健康被害情報受理日","性別","年齢","主な症状\n（自己申告を含む）","摂取開始日・期間","症状発現日","症状発現後の使用状況・症状","他のいわゆる健康食品の摂取状況","医薬品の\n摂取状況","重篤度\n（保健所使用欄）","備考"]
[1,"2022-01-06","女性","不明","味を感じにくくなった、胃部不快感","令和3年10月頃","不明","中止後症状改善あり","なし","あり","軽微"]
[2,"2022-02-07","女性","40代","便秘気味になった","不明","不明","不明","不明","不明","軽微"]
[3,"2022-03-07","女性","50代","人間ドックで子宮内膜が厚いと指摘された","不明","不明","不明","不明","不明","軽度","症状経過は不明"]
[4,"2022-03-07","女性","不明","胃が重たくなる","不明","不明","中止後症状改善あり","不明","不明","軽微"]
[5,"2022-04-11","女性","不明","生理前のような胸のハリを感じる","不明","不明","不明","不明","不明","軽微","情報提供者は販売店"]
[6,"2022-05-16","女性","50代","不正性器出血、閉経後だが生理時のような痛み、出血があった","開始日：不明\n終了日：令和3年12月頃","不明","中止後症状改善あり","不明","あり","軽度","症状経過：自然治癒"]
[7,"2022-05-16","女性","不明","胃もたれ","不明","不明","中止後症状不明","不明","不明","軽微"]
[8,"2022-05-31","女性","80代","かゆみ・発疹","令和４年４月～同月20日頃","令和４年４月","中止後症状改善あり","不明","あり","軽度","症状経過：自然治癒"]
[9,"2022-06-13","女性","50代","腹痛、下痢（具体的な訴え：水様便、手足のしびれ、冷や汗）","令和３年５月頃～不明","令和４年５月","不明","不明","あり","軽微"]
[10,"2022-06-28","女性","50代","不正性器出血、生理時のような鈍い腰痛","2022-05-22","2022-05-23","継続摂取","不明","不明","軽微"]

{"sheet":"５．プエラリア・ミリフィカ+ブラックコホシュ","index":5,"n_rows":27,"n_cols":12,"rows_kept":27,"cut":false,"hidden":false,"merged":[[1,1,1,11],[6,0,6,11]]}
[]
[null,"指定成分等含有食品との関連が疑われる健康被害情報一覧"]
[]
[null,null,null,null,null,null,null,null,null,null,null,"医薬・生活衛生局食品基準審査課"]
[null,null,null,null,null,null,null,null,null,null,null,"令和5年7月10日時点"]
[]
["健康被害情報の内容の追加及び変更（届出対象でないと判明した場合を含む。）の報告により、随時更新しています。"]
[]
["５．プエラリア・ミリフィカ+ブラックコホシュを含む食品（17件）"]
["No.","健康被害\n情報受理日","性別","年齢","主な症状\n（自己申告を含む）","摂取開始日・期間","症状発現日","症状発現後の使用状況・症状","他のいわゆる健康食品の摂取状況","医薬品の\n摂取状況","重篤度\n（保健所使用欄）","備考"]
[1,"2022-01-05","女性","50代","胃痛、便秘","不明","摂取開始１－２日後","継続摂取","なし","あり","軽度","症状には波があり、本品の摂取を休止したが胃痛が発生することもあった。かかりつけと異なる医療機関を受診したが、本品の摂取は申告しておらず、担当医は胃痛の原因は不明。摂取者が繁忙期のため、自律神経系に負担がかかった可能性があるとの見解で、レバミピド、オメプラゾール、半夏瀉心湯、ビオフェルミンが処方された。（報告書に記載あり）"]
[2,"2022-01-05","女性","40代","月経不順","不明（ただし、摂取期間は２－３週間）","不明","中止後症状改善あり","あり","なし","軽微","生理周期が28－30日であったが、本品を2－3週間摂取したところ、生理が1週間遅れてきた。（報告書に記載あり）"]
[3,"2022-03-04","女性","30代","月経不順","開始日：不明\n中止日：令和4年1月19日\n（摂取期間は半年）","不明","中止後の症状不明","あり","なし","軽微","摂取し始めて30日周期で整っていた生理が2ヶ月周期になったとのこと。（報告書に記載あり。）"]
[4,"2022-03-04","女性","不明","白髪が増えた","不明（ただし、摂取期間は2ヶ月間）","摂取開始10日後","継続摂取","なし","なし","軽微"]
[5,"2022-03-04","男性","40代","眠りにくさと性欲の減退を感じた","不明（ただし、摂取期間は10日間）","摂取開始10日後","中止後症状の改善なし","あり","なし","軽微","10日ほど摂取し、体調の変化を感じて摂取を中止したが、現在も体調が戻らない。今まで夜12時頃に寝付けていたが、今は朝5-6時頃まで眠れない。以前に眠れない時期にもらった眠剤が残っていたので、使った日は3時頃に眠れるとのこと。（報告書に記載あり。）"]
[6,"2022-04-14","女性","70代","皮疹、体重が１㎏増えた","令和4年2月頃から","令和4年3月22日～令和4年3月23日頃","継続摂取","あり","なし","軽微"]
[7,"2022-04-14","女性","40代","月経不順、最初の経血が不正出血のように少なく、いつもある生理前の腹痛がいつもより、長かった。","不明（摂取期間は半年以上）","令和4年3月頃","不明","不明","不明","軽微"]
[8,"2022-05-24","女性","40代","両足の浮腫み、左肋骨の軽い痛み","不明（摂取期間は約2週間）","摂取開始約2週間後","中止後症状の改善あり","あり","なし","軽微","令和4年4月5日に注文し、届いてからすぐ摂取開始した処、4月22日頃をピークに両足の浮腫みと左肋骨に軽い痛みがあるとの申告であった。（報告書に記載あり）"]
[9,"2022-06-15","女性","50代","おりものの色が薄いピンク色になることがある。","不明（摂取期間は約3か月間）","摂取開始約１か月後","中止後に症状改善なし","あり","あり","軽微"]
[10,"2022-07-26","女性","50代","令和4年4月28日の定期血液検査で血清鉄が183だった。","不明","令和4年4月28日の定期血液検査で判明","不明","あり","あり","軽微","令和4年4月28日の定期血液検査で血清鉄が183であり、医師より何か鉄分を含むサプリメントを摂取してないか確認されたとの申告。（報告書に記載あり）"]
[11,"2022-08-17","女性","20代","月経不順","不明（1回3粒摂取しただけ）","令和4年6月25日に生理になるはずが、6月30日に生理がきた","中止後症状の改善あり","あり","あり","軽微","令和4年6月22日に本品を3粒摂取後、生理周期が遅れるから生理前は飲まない方がよいとの情報を見て、一旦中止した。6月25日に生理になるはずだが、6月30日に生理になったとの申告。（報告書に記載あり）"]
[12,"2022-08-17","女性","40代","胃のむかつき、めまい","不明（摂取期間は2～3週間）","令和4年7月4日頃","中止後症状の改善あり","あり","なし","軽微","本品を摂取開始して2～3週間後の令和4年7月4日の就寝前に摂取した処、夜中に胃のむかつきとめまいを感じた。朝起きても同様の症状が続いていたが、仕事を休み寝ていた処、症状はだんだん改善してきたとの申告。（報告書に記載あり）"]
[13,"2022-10-04","女性","30代","月経不順、腹痛というか消化不良みたいな感じで便秘が続いていた。一度摂取を中止したが、そのあたりで生理が来る予定だったが3日遅れた。また経血量も少なかった。","不明（ただし、摂取期間は3週間）","不明","中止後症状不明","不明","不明","軽度","本品を摂取開始し、最初は腹痛というか消化不良みたいな感じで便秘が続いた。普段から便秘しやすいがいつもは2日程度だが、今回は5日間程出なかった。一度摂取を中止して、そのあたりの時期に生理が来る予定だったが、予定日より3日遅れ、いつもより経血量が少なかった。婦人科で相談した処、本品が原因の可能性もあり、エストロゲンが多く出過ぎてしまって、プロゲステロンが少なくなり、経血量が減った可能性がある。あくまで可能性であり、はっきりわからないので、1週間続くようなら再受診するように言われたとの申告。（報告書に記載あり）症状経過について、自治体に確認した結果、サプリメントの摂取を中止した処、体調が元に戻った、次の月経も通常に戻り、経血量も通常量だった、体調が元に戻った為、病院の再受診はしていない。"]
[14,"2022-11-25","女性","50代","倦怠感、呼吸困難","不明（ただし、摂取期間は約半月）","摂取開始3日目くらいから","中止後症状改善あり\n中止後再使用で症状再発あり","不明","不明","軽微","当該製品摂取開始3日目ぐらいから体のだるさや呼吸のし辛さを感じるようになり、10日近く続いたため、当該製品の摂取中止をした処、症状が消失した。現在、再開し4日近くなるがまだなんとくだるさや息苦しさを感じるようになったとの申告であった。（報告書に記載あり）"]
[15,"2022-11-25","女性","不明","最近お腹が張ってきたので、婦人科を受診した処、子宮筋腫と判明した。","不明","最近（詳細不明）","中止後症状の改善あり","不明","不明","軽度","体調不良者の友人から入電の為、摂取状況等を詳細に聞きこむことができなかった。体調不良者は、最近お腹が張ってきた為、子宮がんを疑い、婦人科を受診した。子宮体がん、子宮頸がんともに異常なしだったが、子宮筋腫であることがわかった。医師に当該製品を摂取していることを申告したが、原因不明とのこと。その後、当該製品の摂取を中止したら元に戻ったとの体調不良者の友人からの申告であった。症状経過：外来治療で治癒。（報告書に記載あり）"]
[16,"2022-11-25","女性","50代","不正性器出血","不明（ただし、摂取回数は1回）","摂取した翌日","中止後症状の改善あり","あり","なし","軽微","当該製品を1回摂取した処、翌日から不正出血が続き、数日で出血は止まったとの申告であった。（報告書に記載あり）"]
[17,"2022-12-21","女性","50代","不正性器出血","不明(摂取状況は不明だが、平成30年7月から本品を定期購入)","令和4年1月頃","不明","なし","不明","死亡","摂取者家族からの申告によれば、令和４年１月頃に不正性器出血の症状出現後、同年３月に医療機関を受診し膣がんの疑い、他臓器への転移の疑いがあると言われていた。同年４月に死亡。\n医療機関からの情報(自治体からの追加情報）も踏まえると、指定成分等含有食品等との関連が疑われる健康被害情報への対応ワーキンググループの見解は、時間的経緯、病理所見等の総合的な情報から、がんの直接原因であった可能性は低いとされている。"]